Cogmind - Beta 13 @@@ ROGUE MODE // 2024.04.15 @ 20:53:48 Player: Somnium Result: Destroyed by Y-64 Sentinel with KE Penetrator Performance ------------- Evolutions (6) 3000 Regions Visited (9) 1800 Robots Destroyed (120) 600 Value Destroyed (4082) 4082 Prototype IDs (18) 360 Alien Tech Used (0) 0 Bonus (538) 538 TOTAL SCORE: 10380 Bonus ------- High Alert Combat Kills 538 Cogmind --------- Core Integrity 0/1150 Matter 265/300 Energy 13/100 System Corruption 10% Temperature Cool (15) Movement Hovering (52) Location -4/Factory Parts ------- > --- POWER (2) -------- (None) > --- PROPULSION (5) --- Antigrav System Antigrav System Antigrav System > --- UTILITY (8) ------ (None) > --- WEAPON (4) ------- (None) > --- INVENTORY (5) ---- Armored Huge Wheel Molecular Deconstructor Peak State ------------ > --- POWER ------------ Light Deuterium Engine Fusion Compressor > --- PROPULSION ------- Carbon-fiber Leg Carbon-fiber Leg Flexi-carbon Leg Armored Leg > --- UTILITY ---------- Advanced Heat Sink Small Storage Unit Structural Scanner Phase Shifter Hardened Medium Armor Plating > --- WEAPON ----------- Plasma Rifle Molecular Deconstructor > --- INVENTORY -------- Matter Compressor Triangulator Target Analyzer Phase Shifter Cloaking Device [Rating: 64] Favorites ----------- Power Light Deuterium Engine Engine Light Deuterium Engine Power Core Fusion Compressor Propulsion Compact Wheel Treads Armored Medium Treads Leg Flexi-carbon Leg Wheel Compact Wheel Hover Unit Antigrav System Utility Large Storage Unit Device Improved Sensor Array Storage Large Storage Unit Processor Improved Signal Interpreter Protection Gun Armor Weapon Gatling Laser Energy Gun Gatling Laser Energy Cannon Beam Cannon Ballistic Gun Light Assault Rifle Ballistic Cannon Light Cannon Launcher Grenade Launcher Special Weapon Mining Laser Build | -11 -10 -10 -8 -7 -6 -6 -6 -5 -4 ------- Run | Yrd Mat Sub Mat Fac Fac Low Low Fac Fac Slots Evolved 12 | . . . 4 2 2 . . 2 2 Power 1 | . . . . 1 . . . . . Propulsion 3 | . . . 1 1 1 . . . . Utility 6 | . . . 2 . 1 . . 2 1 Weapon 2 | . . . 1 . . . . . 1 Parts Attached 158 | 1 17 12 35 37 21 11 3 6 15 Power 18 | . 3 1 4 6 3 1 . . . Engine 11 | . 3 1 3 2 1 1 . . . Core 7 | . . . 1 4 2 . . . . Reactor . | . . . . . . . . . . Propulsion 46 | . 5 2 11 11 4 2 2 3 6 Treads 2 | . . . . . . . . . 2 Leg 16 | . . . 5 . 3 2 2 3 1 Wheel 24 | . 5 2 6 11 . . . . . Hover 4 | . . . . . 1 . . . 3 Flight . | . . . . . . . . . . Utility 46 | 1 4 2 5 14 9 7 . 3 1 Device 23 | 1 2 2 1 6 5 5 . 1 . Storage 4 | . 2 . . 1 1 . . . . Processor 5 | . . . 2 1 . . . 1 1 Hackware . | . . . . . . . . . . Protection 14 | . . . 2 6 3 2 . 1 . Artifact . | . . . . . . . . . . Weapon 48 | . 5 7 15 6 5 1 1 . 8 Energy Gun 27 | . 1 . 8 5 4 1 . . 8 Energy Cannon 1 | . . 1 . . . . . . . Ballistic Gun 6 | . 2 2 1 . 1 . . . . Ballistic Cannon 4 | . 1 1 2 . . . . . . Launcher 4 | . . 1 2 1 . . . . . Special Weapon 6 | . 1 2 2 . . . 1 . . Impact Weapon . | . . . . . . . . . . Slashing Weapon . | . . . . . . . . . . Piercing Weapon . | . . . . . . . . . . Special Melee Weapon . | . . . . . . . . . . Unidentified Prototypes 6 | . . . 2 . 3 . 1 . . Corrupted Parts 1 | . . . . . . . . . 1 System Corruption 9 | . . . . . . . . . 9 Parts Lost 60 | . 3 2 11 15 . 9 4 . 16 Power 11 | . 2 . 2 4 . 1 1 . 1 Propulsion 22 | . 1 . 5 7 . . 2 . 7 Utility 13 | . . 1 . 3 . 5 1 . 3 Weapon 14 | . . 1 4 1 . 3 . . 5 Highest Loss Streak 11 | . 1 2 7 4 . 8 3 . 11 To Critical Strikes 2 | . . . . . . . 1 . 1 Average Slot Usage (%) 81 | . 98 98 86 83 71 75 70 65 29 Engine 6 | . 13 14 6 2 4 5 6 5 1 Core 3 | . . . 1 8 3 6 3 . . Leg 7 | . 2 . 3 . 15 24 21 24 8 Wheel 14 | . 24 28 15 24 . . . . . Device 10 | . 14 12 7 1 19 14 17 15 5 Storage 8 | . 14 14 8 6 5 6 6 5 2 Processor 2 | . . . 6 6 . . . 1 3 Protection 5 | . . . 9 11 5 3 6 4 . Energy Gun 11 | . 10 . 15 18 11 11 6 5 3 Energy Cannon 1 | . . 14 3 . . . . . . Ballistic Gun 3 | . 12 3 2 . 3 . . . . Ballistic Cannon 2 | . 3 9 4 . . . . . . Naked Turns 100 | . . . . 68 . . . . 32 Heaviest Build 63 | 11 30 32 47 63 46 40 36 25 30 Greatest Support 90 | 20 32 32 42 54 56 56 65 90 90 Greatest Overweight (x) 18 | . 1 . 13 18 . 1 1 . . Average Overweight (x) . | . . . 1 . . . . . . Largest Inventory Capacity 15 | 8 15 15 15 15 8 8 8 8 8 Average Capacity 12 | 8 14 15 15 14 7 8 8 8 6 Most Carried 15 | 8 15 15 15 15 8 8 7 8 8 Average Carried 10 | 6 12 14 13 14 5 4 5 7 5 Final Capacity 15 | 8 15 15 15 5 8 8 8 8 5 Final Carried 15 | 8 15 15 15 5 8 5 7 8 4 Class Distribution -------------------- 48% | Mutant 15% | Scavenger-Mutant 14% | Tank 7% | Skirmisher 7% | Scavenger-Tank 5% | Scavenger-Skirmisher Dominant Class ---------------- Mutant | -10/Materials Mutant | -10/Subcaves Skirmisher | -8/Materials Scavenger-Mutant | -7/Factory Tank | -6/Factory Mutant | -6/Lower Caves Mutant | -6/Lower Caves Mutant | -5/Factory Mutant | -4/Factory Resources | -11 -10 -10 -8 -7 -6 -6 -6 -5 -4 ----------- Run | Yrd Mat Sub Mat Fac Fac Low Low Fac Fac Matter Collected 2834 | 217 206 74 655 491 241 538 259 68 85 Remotely . | . . . . . . . . . . Salvage Created 4620 | 144 285 37 1601 1399 263 305 244 138 204 Parts 225 | 5 22 1 86 71 12 5 6 8 9 Haulers Intercepted 2 | . . . 1 1 . . . . . Recyclers Shooed 6 | . 1 . . 2 . . . 2 1 Parts Field Recycled . | . . . . . . . . . . Retrieved Matter . | . . . . . . . . . . Parts Self-Destructed 7 | . . . . . . 3 4 . . Prevented 1 | . . . . . . 1 . . . Kills | -11 -10 -10 -8 -7 -6 -6 -6 -5 -4 ------- Run | Yrd Mat Sub Mat Fac Fac Low Low Fac Fac Combat Hostiles Destroyed 92 | . 10 2 31 29 7 5 4 1 3 Guns 67 | . 10 . 19 26 7 3 1 1 . Cannons 8 | . . . 8 . . . . . . AOE 10 | . . 2 3 3 . . . . 2 Classes Destroyed 15 | 2 3 1 4 3 . . 1 1 . Worker 8 | . . . 3 3 . . . 2 . Tunneler 3 | 2 . . . 1 . . . . . Hauler 2 | . . . 1 1 . . . . . Recycler 4 | 1 . . 1 2 . . . . . Mechanic 2 | . . . . 1 . . . 1 . Operator 2 | . . . . 2 . . . . . Watcher 7 | . 2 . 2 2 . . . 1 . Swarmer 27 | . 6 . 6 12 3 . . . . Grunt 44 | . 4 . 16 12 2 4 3 . 3 Brawler 1 | . . . . . . . 1 . . Duelist 3 | . . . 2 . 1 . . . . Sentry 10 | . . . 7 3 . . . . . Hunter 1 | . . . . . . . . 1 . Programmer 4 | . . . . 2 1 1 . . . Subdweller 2 | . . 2 . . . . . . . Best Kill Streak 7 | 2 5 2 4 7 3 3 4 4 2 Combat Bots Only 7 | . 5 2 4 7 3 3 4 1 2 Max Kills in Single Turn 2 | 1 1 1 1 2 2 1 1 1 2 Gunslinging 1 | . . . . 1 1 . . . . Exploded 2 | . . 1 1 2 . . . . 2 Melee . | . . . . . . . . . . Uniques/NPCs Destroyed . | . . . . . . . . . . Combat | -11 -10 -10 -8 -7 -6 -6 -6 -5 -4 -------- Run | Yrd Mat Sub Mat Fac Fac Low Low Fac Fac Hostile Shots Fired 749 | . 55 17 108 186 42 78 45 6 212 Missed 210 | . 7 5 28 58 13 12 18 3 66 Damage Taken 10148 | . 475 456 1266 2202 635 1309 536 50 3219 Core 2590 | . 118 118 256 588 34 245 44 18 1169 Absorbed by Shields . | . . . . . . . . . . Redirected to Shielding 101 | . . . . . 18 83 . . . Regen/Repaired (Parts) 419 | . 52 . 135 232 . . . . . Core Remaining (%) 55 | 100 . 5 53 16 . . 62 98 . Volleys Fired 310 | 7 46 10 71 64 21 24 19 25 23 Largest 4 | 2 2 2 4 3 3 3 2 1 2 Hottest 240 | 60 100 100 195 240 225 160 75 75 163 Shots Fired 648 | 14 88 18 199 158 52 46 21 25 27 Gun 553 | 14 85 . 129 155 52 46 20 25 27 Cannon 79 | . 2 13 64 . . . . . . Launcher 9 | . . 3 3 3 . . . . . Special 7 | . 1 2 3 . . . 1 . . Kinetic 129 | 7 45 5 58 . 7 7 . . . Thermal 397 | 7 43 10 57 155 45 22 20 25 13 Explosive 9 | . . 3 3 3 . . . . . Electromagnetic 112 | . . . 81 . . 17 . . 14 Robot Hit Streak 19 | 8 10 3 19 16 14 5 14 5 9 Robot Miss Streak 8 | 1 6 4 8 5 4 4 1 2 4 Penetration Max . | . . . . . . . . . . Secondary Targets 14 | . 2 . 5 4 2 1 . . . Max Gunslinging Chain 1 | . 1 . 1 1 1 1 . . . Shots Hit Robots 430 | 10 53 8 111 128 38 28 18 19 17 Core Hits 275 | 5 20 3 76 114 21 9 8 9 10 Critical Kills . | . . . . . . . . . . Critical Parts Destroyed . | . . . . . . . . . . Critical Strikes 21 | . 4 . 1 . 1 3 3 6 3 Burn 20 | . 4 . . . 1 3 3 6 3 Blast 1 | . . . 1 . . . . . . Melee Attacks . | . . . . . . . . . . Impact . | . . . . . . . . . . Slashing . | . . . . . . . . . . Piercing . | . . . . . . . . . . Sneak Attacks . | . . . . . . . . . . Combat Hostiles . | . . . . . . . . . . Follow-up Attacks . | . . . . . . . . . . Damage Inflicted 9951 | 99 572 325 2534 3367 913 681 379 469 612 Guns 7621 | 99 569 . 1543 2627 898 681 372 460 372 Cannons 613 | . . 89 524 . . . . . . Explosions 1585 | . . 236 453 729 . . . . 167 Melee . | . . . . . . . . . . Ramming 132 | . 3 . 14 11 15 . 7 9 73 Kinetic 812 | 42 187 54 339 . 79 111 . . . Thermal 6440 | 57 382 35 928 2627 819 357 372 460 403 Explosive 886 | . . 236 189 461 . . . . . Electromagnetic 1681 | . . . 1064 268 . 213 . . 136 Impact . | . . . . . . . . . . Slashing . | . . . . . . . . . . Piercing . | . . . . . . . . . . Highest Corruption 10 | . . . 1 1 2 3 4 . 10 Average Corruption 2 | . . . 1 1 1 2 3 . 9 Corruption Purged . | . . . . . . . . . . Corruption Blocked . | . . . . . . . . . . Effects 31 | . . . 3 2 2 10 4 . 10 Message Errors 5 | . . . . . 1 2 1 . 1 Matter Fused 6 | . . . 2 . . 3 1 . . Heat Flow Errors 5 | . . . 1 . . . . . 4 Energy Discharges 5 | . . . . . 1 2 1 . 1 Parts Rejected 4 | . . . . . . 1 . . 3 Data Loss (minor) 4 | . . . . 1 . 2 . . 1 Misfires 1 | . . . . . . . 1 . . Alerts 1 | . . . . 1 . . . . . Overload Shots . | . . . . . . . . . . Overflow Damage 74 | . . . 9 . . . . . 65 Projectiles 9 | . . . 9 . . . . . . Explosions 65 | . . . . . . . . . 65 Melee . | . . . . . . . . . . Knockbacks 5 | . . 1 3 . . . . . 1 Impact 1 | . . . . . . . . . 1 Kinetic 4 | . . 1 3 . . . . . . Secondary . | . . . . . . . . . . Self-Inflicted Damage 218 | . 1 . 80 5 . . . . 132 Shots 3 | . . . 2 . . . . . 1 Rammed 34 | . 1 . 2 3 . . . . 28 Targets Rammed 43 | . 1 . 2 3 2 . 3 2 30 Kicked 9 | . . . . . 2 . 3 2 2 Crushed . | . . . . . . . . . . Highest Temperature 699 | 40 295 250 378 699 387 662 19 . 164 Average Temperature 164 | 17 101 161 129 199 149 298 7 . 44 Received Heat Transfer 3172 | . 156 295 468 624 99 516 270 . 744 Effects 72 | . . . 6 49 2 15 . . . Shutdowns 18 | . . . . 13 1 4 . . . Energy Bleed 7 | . . . . 4 1 2 . . . Interference 15 | . . . 3 8 . 4 . . . Matter Decay 6 | . . . 1 4 . 1 . . . Short Circuit 11 | . . . 2 7 . 2 . . . Damage (minor) 4 | . . . . 3 . 1 . . . Damage (major) 9 | . . . . 9 . . . . . Damage (core) 2 | . . . . 1 . 1 . . . Siege Activations . | . . . . . . . . . . Robots Corrupted 2 | . . . . . . 1 . . 1 Combat Hostiles 2 | . . . . . . 1 . . 1 Parts Fried 6 | . . . 5 . . . . . 1 Impact Corruptions . | . . . . . . . . . . Robots Melted 4 | . . . 1 . . 1 2 . . Combat Hostiles 4 | . . . 1 . . 1 2 . . Parts Melted 31 | . 2 . 1 14 4 3 4 3 . Heat Transferred 15388 | 125 1382 74 1740 5728 1784 933 1150 1650 822 Parts Sabotaged . | . . . . . . . . . . Parts Stolen . | . . . . . . . . . . Parts Stripped . | . . . . . . . . . . Power Chain Reactions 5 | . . . 4 . . . . . 1 Alert | -11 -10 -10 -8 -7 -6 -6 -6 -5 -4 ------- Run | Yrd Mat Sub Mat Fac Fac Low Low Fac Fac Peak Influence 996 | 15 207 . 691 996 557 . . 123 100 Initial 487 | . 9 . . 276 487 . . 81 60 Average 339 | 9 73 . 398 513 450 . . 96 59 Maximum Alert Level 3 | . 1 . 2 3 2 . . . . Low Security (%) 33 | 100 95 . 16 . . . . 100 100 Level 1 16 | . 4 . 28 14 29 . . . . Level 2 47 | . . . 55 78 70 . . . . Level 3 2 | . . . . 7 . . . . . Level 4 . | . . . . . . . . . . Level 5 . | . . . . . . . . . . High Security . | . . . . . . . . . . Max Security . | . . . . . . . . . . Squads Dispatched 18 | . 1 . 4 10 1 . . 1 1 Investigation 7 | . 1 . 3 2 . . . 1 . Extermination 3 | . . . . 2 1 . . . . Reinforcement 6 | . . . 1 4 . . . . 1 Assault 2 | . . . . 2 . . . . . Garrison . | . . . . . . . . . . Intercept . | . . . . . . . . . . Searches Triggered . | . . . . . . . . . . Construction Impeded 1 | . . . . 1 . . . . . Haulers Reinforced . | . . . . . . . . . . Active Scanning Responses . | . . . . . . . . . . Cargo Convoy Interrupts 1 | . . . . 1 . . . . . Stealth | -11 -10 -10 -8 -7 -6 -6 -6 -5 -4 --------- Run | Yrd Mat Sub Mat Fac Fac Low Low Fac Fac Distress Signals 7 | . . . 4 1 . . . . 2 Communications Jammed . | . . . . . . . . . . Distress Signals . | . . . . . . . . . . Times Spotted 164 | . 15 4 48 61 9 6 5 4 12 Peak Tracking Total 12 | . 4 2 5 12 4 4 4 2 6 Tactical Retreats 21 | . . 1 4 10 1 1 1 . 3 Traps | -11 -10 -10 -8 -7 -6 -6 -6 -5 -4 ------- Run | Yrd Mat Sub Mat Fac Fac Low Low Fac Fac Traps Triggered 7 | . 1 3 1 . 1 . . 1 . Indirectly . | . . . . . . . . . . Trap Hack Attempts . | . . . . . . . . . . Triggered . | . . . . . . . . . . Disarmed . | . . . . . . . . . . Reprogrammed . | . . . . . . . . . . Reused . | . . . . . . . . . . Traps Extracted . | . . . . . . . . . . Installed . | . . . . . . . . . . Triggered 3 | . . . . 2 . . 1 . . Machines | -11 -10 -10 -8 -7 -6 -6 -6 -5 -4 ---------- Run | Yrd Mat Sub Mat Fac Fac Low Low Fac Fac Machines Disabled 8 | . . 1 3 3 . . 1 . . Max in Single Turn 1 | . . 1 1 1 . . 1 . . Garrison Access 1 | . . . . 1 . . . . . Machines Repaired . | . . . . . . . . . . Machines Dismantled . | . . . . . . . . . . Machines Sabotaged . | . . . . . . . . . . Overloaded Fab Kills . | . . . . . . . . . . Hacking | -11 -10 -10 -8 -7 -6 -6 -6 -5 -4 --------- Run | Yrd Mat Sub Mat Fac Fac Low Low Fac Fac Machines Accessed 29 | . 7 1 8 7 4 1 . 1 . Terminals 17 | . 6 . 6 2 3 . . . . Fabricators 1 | . . . . 1 . . . . . Repair Stations 6 | . 1 . 1 4 . . . . . Recycling Units . | . . . . . . . . . . Scanalyzers 2 | . . . 1 . . . . 1 . Garrison Access 1 | . . . . . 1 . . . . Total Hacks 74 | . 18 9 20 16 7 1 . 3 . Successful 45 | . 11 9 11 10 1 1 . 2 . Failed 29 | . 7 . 9 6 6 . . 1 . Catastrophic 4 | . . . 1 1 2 . . . . Database Lockouts . | . . . . . . . . . . Manual 15 | . 9 . 2 . 3 . 1 . . Terminals 38 | . 14 . 13 5 6 . . . . Fabricators 1 | . . . . 1 . . . . . Repair Stations 18 | . 4 . 4 10 . . . . . Recycling Units . | . . . . . . . . . . Scanalyzers 6 | . . . 3 . . . . 3 . Garrison Access 1 | . . . . . 1 . . . . Terminal Hacks 23 | . 7 9 5 1 . 1 . . . Record 10 | . . 8 2 . . . . . . Robot Analysis 2 | . 2 . . . . . . . . Prototype ID Bank 1 | . 1 . . . . . . . . Open Door 1 | . . . . . . 1 . . . Terminal Index 1 | . . . 1 . . . . . . Locate Traps 1 | . . . 1 . . . . . . Hauler Manifests 1 | . 1 . . . . . . . . Zone Layout 5 | . 3 . 1 1 . . . . . Derelict Proto ID Bank 1 | . . 1 . . . . . . . Fabricator Hacks 1 | . . . . 1 . . . . . Build 1 | . . . . 1 . . . . . Repair Station Hacks 14 | . 4 . 2 8 . . . . . Scan Component 7 | . 2 . 1 4 . . . . . Repair 7 | . 2 . 1 4 . . . . . Recycling Unit Hacks . | . . . . . . . . . . Scanalyzer 5 | . . . 3 . . . . 2 . Insert Component 2 | . . . 1 . . . . 1 . Analyze 3 | . . . 2 . . . . 1 . Garrison Access Hacks . | . . . . . . . . . . Unauthorized Hacks 2 | . . . 1 . 1 . . . . Terminals 2 | . . . 1 . 1 . . . . Botnet 2 | . . . 1 . 1 . . . . Fabricators . | . . . . . . . . . . Repair Stations . | . . . . . . . . . . Recycling Units . | . . . . . . . . . . Scanalyzers . | . . . . . . . . . . Garrison Access . | . . . . . . . . . . Data Cores Recovered 1 | . . . . 1 . . . . . Used 1 | . . . . 1 . . . . . Hacking Detections 22 | . 6 . 8 5 3 . . . . Full Trace Events 5 | . . . 3 2 . . . . . Feedback Events 2 | . . . 1 1 . . . . . Corruption 2 | . . . 1 1 . . . . . Feedback Blocked . | . . . . . . . . . . Robot Schematics Acquired . | . . . . . . . . . . Robots Built . | . . . . . . . . . . Authchips . | . . . . . . . . . . Time . | . . . . . . . . . . Total Robot Build Rating . | . . . . . . . . . . Part Schematics Acquired 1 | . . . . . . . . 1 . Parts Built 2 | . . . . 2 . . . . . Authchips . | . . . . . . . . . . Time 95 | . . . . 95 . . . . . Total Part Build Rating 10 | . . . . 10 . . . . . Parts Repaired 7 | . 2 . 1 4 . . . . . Time 254 | . 52 . 44 158 . . . . . Parts Recycled . | . . . . . . . . . . Recycled Matter . | . . . . . . . . . . Retrieved Matter . | . . . . . . . . . . Retrieved Components . | . . . . . . . . . . Parts Scanalyzed 2 | . . . 1 . . . . 1 . Part Schematics Acquired 1 | . . . . . . . . 1 . Parts Damaged . | . . . . . . . . . . Bothacking | -11 -10 -10 -8 -7 -6 -6 -6 -5 -4 ------------ Run | Yrd Mat Sub Mat Fac Fac Low Low Fac Fac Used RIF Installer . | . . . . . . . . . . Robots Hacked . | . . . . . . . . . . Non-combat . | . . . . . . . . . . Combat . | . . . . . . . . . . Robot Hacks Applied . | . . . . . . . . . . Relay Couplers Released 2 | . . . . 2 . . . . . Machine Destruction 2 | . . . . 2 . . . . . Fabnet Peak Effective % . | . . . . . . . . . . Robots Rewired . | . . . . . . . . . . Allies Hacked . | . . . . . . . . . . Hacks Repelled . | . . . . . . . . . . Allies | -11 -10 -10 -8 -7 -6 -6 -6 -5 -4 -------- Run | Yrd Mat Sub Mat Fac Fac Low Low Fac Fac Total Allies . | . . . . . . . . . . Largest Group . | . . . . . . . . . . Highest-Rated Group . | . . . . . . . . . . Highest-Rated Ally . | . . . . . . . . . . Total Orders . | . . . . . . . . . . Ally Attacks . | . . . . . . . . . . Total Damage . | . . . . . . . . . . Kills . | . . . . . . . . . . Allies Corrupted . | . . . . . . . . . . Allies Melted . | . . . . . . . . . . Intel | -11 -10 -10 -8 -7 -6 -6 -6 -5 -4 ------- Run | Yrd Mat Sub Mat Fac Fac Low Low Fac Fac Robot Analysis Total 2 | . 2 . . . . . . . . Derelict Logs Recovered 2 | . . 1 . . . . 1 . . Drone Launches . | . . . . . . . . . . Drone Recoveries . | . . . . . . . . . . Exploration | -11 -10 -10 -8 -7 -6 -6 -6 -5 -4 ------------- Run | Yrd Mat Sub Mat Fac Fac Low Low Fac Fac Turns Passed 6927 | 68 1052 614 1235 1533 991 706 171 200 357 Spaces Moved 4440 | 16 718 512 656 1017 621 509 100 115 176 Core 186 | . . . 6 128 28 . . . 24 Treads 76 | . . . . . . . . . 76 Legs 1506 | 16 50 . 50 . 593 509 100 115 73 Wheels 2669 | . 668 512 600 889 . . . . . Hover 3 | . . . . . . . . . 3 Flight . | . . . . . . . . . . Fastest Speed 50 | 120 100 100 93 50 50 120 120 120 50 Average Speed 107 | 120 101 100 115 90 116 120 120 120 130 Slowest Speed 950 | 120 120 100 700 950 120 190 190 120 170 Overloaded Moves . | . . . . . . . . . . Propulsion Burnouts . | . . . . . . . . . . Robots Hopped . | . . . . . . . . . . Cave-ins Triggered . | . . . . . . . . . . Exploration Rate (%) 30 | 3 77 38 46 27 14 74 20 3 6 Regions Visited 9 Branch Regions 3 Pre-discovered Areas . | . . . . . . . . . . Known Exits Taken 1 | . . . 1 . . . . . . Unknown Exits Taken 8 | 1 1 1 . 1 1 1 1 1 . Scrap Searched 4 | . . 2 . . . 2 . . . Spaces Dug 4 | . 1 . 3 . . . . . . Terrain Destroyed 88 | . 1 14 40 25 3 . . . 5 Melee . | . . . . . . . . . . Projectile 6 | . 1 . 3 . 2 . . . . AOE 81 | . . 14 37 25 . . . . 5 Terrain Rammed . | . . . . . . . . . . Walls Destroyed . | . . . . . . . . . . Machines Disabled . | . . . . . . . . . . Actions | -11 -10 -10 -8 -7 -6 -6 -6 -5 -4 --------- Run | Yrd Mat Sub Mat Fac Fac Low Low Fac Fac Total 5970 | 51 958 586 980 1457 836 557 127 152 266 Wait 899 | 26 158 47 176 309 153 9 2 1 18 Move 4433 | 15 717 511 655 1017 620 508 99 115 176 Hop . | . . . . . . . . . . Pick Up 65 | 2 11 3 17 12 13 4 . 1 2 Fast Attach 66 | 1 3 1 16 19 7 2 3 2 12 Attach 42 | . 3 2 11 5 9 7 . 2 3 Detach 12 | . . 1 6 . 2 . 1 1 1 Swap 50 | . 11 9 8 13 5 2 . 2 . Drop 51 | . 8 2 18 16 4 . . 2 1 Fire 310 | 7 46 10 71 64 21 24 19 25 23 Melee . | . . . . . . . . . . Ram 27 | . 1 . 2 2 . . . . 22 Kick 8 | . . . . . 2 . 3 1 2 Crush 6 | . . . . . . . . . 6 Escape Stasis . | . . . . . . . . . . Rewire 1 | . . . . . . 1 . . . Trap . | . . . . . . . . . . Miscellaneous . | . . . . . . . . . . Route ------- -11/Scrapyard -10/Materials (discovered 5 exits: [*Mat x2] / [*Min x2] / *Sub) -10/Subcaves -8/Materials -7/Factory -6/Factory -6/Lower Caves -6/Lower Caves -5/Factory -4/Factory History --------- Turn | Location | Event 9 | -11/Scrapyard | Discovered new exit (range 3) 69 | -11/Scrapyard | Entered Materials 167 | -10/Materials | Discovered new exit (range 10) 203 | -10/Materials | Discovered new exit (range 16) 318 | -10/Materials | Build established: Mutant 536 | -10/Materials | Discovered new exit (range 11) 721 | -10/Materials | Discovered new exit (range 11) 754 | -10/Materials | Discovered new exit (range 6) 932 | -10/Materials | Repaired Com. Wheel 959 | -10/Materials | Repaired Lgt. Assault Rifle 1121 | -10/Materials | Entered Subcaves 1205 | -10/Subcaves | Discovered new exit (range 15) 1281 | -10/Subcaves | Core integrity fell below 50% 1294 | -10/Subcaves | Learned location of 1 exit from Materials 1325 | -10/Subcaves | Core integrity fell below 20% 1553 | -10/Subcaves | Visited 4L-MR0's lab 1569 | -10/Subcaves | Found Gun Armor 1612 | -10/Subcaves | Ambushed by Subdwellers from Twisted Machinery 1735 | -10/Subcaves | Entered Materials 1735 | -8/Materials | Evolved 4 slots: Propulsion x1, Utility x2, Weapon x1 1736 | -8/Materials | Identified exit to Factory 1751 | -8/Materials | Attached Gun Armor, gained temporary slots: Weapon x2 2644 | -8/Materials | Repaired Mak. Light Armor Plating 2769 | -8/Materials | Lost 7 parts (2p3n2w) 2970 | -8/Materials | Entered Factory 2970 | -7/Factory | Evolved 2 slots: Power x1, Propulsion x1 3077 | -7/Factory | Fabricated Power Sword? 3206 | -7/Factory | Repaired Wheel 3324 | -7/Factory | Build established: Scavenger-Mutant 3517 | -7/Factory | Lost 4 parts (1p2n1u) 3783 | -7/Factory | Repaired Gatling Laser 3829 | -7/Factory | Repaired Gatling Laser 3874 | -7/Factory | Repaired Gatling Laser 4170 | -7/Factory | First assault squad dispatched 4394 | -7/Factory | Cargo convoy interrupted 4414 | -7/Factory | Core integrity fell below 50% 4425 | -7/Factory | Lost 3 parts (1p2n) 4434 | -7/Factory | Destroyed 7 combat bots 4435 | -7/Factory | Released all parts (7) 4466 | -7/Factory | Lost 3 parts (1n1u1w) 4500 | -7/Factory | Discovered new exit (range 6) 4503 | -7/Factory | Core integrity fell below 20% 4503 | -7/Factory | Entered another Factory area 4503 | -6/Factory | Evolved 2 slots: Propulsion x1, Utility x1 4656 | -6/Factory | Build established: Mutant 5195 | -6/Factory | Build established: Tank 5488 | -6/Factory | Discovered new exit (range 7) 5494 | -6/Factory | Entered Lower Caves 5649 | -6/Lower Caves | Lost 8 parts (1p5u2w) 5892 | -6/Lower Caves | Build established: Mutant 6184 | -6/Lower Caves | Discovered new exit (range 5) 6200 | -6/Lower Caves | Entered another Lower Caves area 6266 | -6/Lower Caves | Acquired the password to a Derelict Tinkerer's latest research 6289 | -6/Lower Caves | Found Prototype Special Weapon 6289 | -6/Lower Caves | Identified Molecular Deconstructor 6355 | -6/Lower Caves | Lost 3 parts (1p1n1u) 6358 | -6/Lower Caves | Discovered new exit (range 10) 6371 | -6/Lower Caves | Entered Factory 6371 | -5/Factory | Evolved 2 slots: Utility x2 6569 | -5/Factory | Discovered new exit (range 2) 6571 | -5/Factory | Entered another Factory area 6571 | -4/Factory | Evolved 2 slots: Utility x1, Weapon x1 6720 | -4/Factory | Released all parts (5) 6749 | -4/Factory | Lost 11 parts (1p5n3u2w) 6817 | -4/Factory | Core integrity fell below 50% 6909 | -4/Factory | Core integrity fell below 20% 6913 | -4/Factory | System corruption reached 10% 6928 | -4/Factory | Destroyed by Y-64 Sentinel with KE Penetrator Last Messages --------------- 06900_ Slammed into G-67 Veteran. 06904_ Destabilizing: Core damaged (-11). 06905_ Slammed into G-67 Veteran. 06906_ Penetrated by Slug. 06907_ Slammed into G-67 Veteran. 06907_ G-67 Veteran knocked back. 06908_ Slammed into G-67 Veteran. 06912_ 6GWKHHQX53N&NFA9PDUFNOQDERE= 06912_ Slammed into G-67 Veteran. 06912_ Destabilizing: System corrupted (+1). 06913_ Slammed into G-67 Veteran. 06915_ Penetrated by Slug. 06916_ Slammed into G-67 Veteran. 06917_ Acquired Hpw. Shock Rifle. 06921_ Hpw. Shock Rifle destroyed. 06921_ Penetrated by Slug. 06922_ Acquired Antigrav System. 06924_ Slug penetrates Wall. 06925_ Acquired Antigrav System. 06928_ System corrupted: Component data lost. Map ----- +----------------------------------------------------+ | ????????????????????????????? | | ????????????????????????????? | | ????????????????????????????? | | ????????????????????????????? | | ????????????????????????????? | | ????????????????????????????? | | ????????????????????????????? | | ????????????????????????????? | | ????????????????????????????? | | ????????????????????????????? | | ????????????????????????????? | | ????????????????????????????? | | ????????????????????????????? | | ????????????????????????????? | | ????????????????????????????? | | #########???????????????????? | | # #????? #???????????? | | ##### #?########### | | # T" #?# # | | # " + """ # | | # #?# "Y" """ # | | # #######???# " " """ # | | # #?######### """ # | | ### ###?# # # | | ??# ##### # # | | ??# "T %# g =@ # | | ??# ! "" %/Y = # | | ??# %%%%# # | | ??## ###### %%%%# # | | ???# #????# %%%# [ # | | ???# #????######### ] # | | ???# #????????????# # | | ???# #????????????# # | | #### ######???????# # | | ####+######???????### ####### | | ##?????????###?????? | | ##?????????????????? | | ##?????????????????? | | ##?????????????????? | | ##?????????????????? | | ##?????????????????? | | ##?????????????????? | | ##?????????????????? | | ##?????????????????? | | ##?????????????????? | | ##?????????????????? | | ???????????????????? | | ###/#####???????????????????? | | ##???????????????????? | | ##???????????????????? | +----------------------------------------------------+ Best States ------------- Heat Dissipation 62 Energy Generation 34 Energy Capacity 340 Matter Stores 300 Matter Capacity 300 Sight Range 16 Robot Scan Range 15 Terrain Scan Range 16 Terrain Scan Density 10 Armor Coverage 450 Weapon Shielding 66 Phase Shifting 5 Evasion (%) 60 Targeting Accuracy 5 Target Analysis 5 Recoil Reduction 2 Item Schematics ----------------- Hrd. Medium Armor Plating | -5/Factory | Scanalyzed Robot Schematics ------------------ None Fabricated ------------ Power Sword | x2 | -7/Factory | Preloaded Alien Tech Used ----------------- None Achievements -------------- Deconstruction Power Corrupts Significant Disruption Challenges ------------ None Game ------ Seed MiniCouplerBrace Manual? 0 Play Time 01:57:02 Cumulative 20.9 hours Start 2024.04.15 @ 18:47:16 End 2024.04.15 @ 20:53:48 Sessions 1 Manual Loads 0 Difficulty Rogue Special Mode None Game No. 24 Rogue 24 Adventurer 0 Explorer 0 Win Type - Total 0 Types 0/0/0/0/0/0/0/0/0 Lore% 19 Gallery% 29 Achievement% 24 Wizard Run 0 Options --------- Layout 0 ASCII 0 Keyboard 0 Movement Mouse Keybinds 0 Fullscreen 1 Font 18/Terminus Map View 76x50 Zoom Use 0% Tactical HUD 1 Map Filters NONE Filters NONE Steam 1 RUN: 780e3826-2bd0-4d2b-a9ad-677b518f7ecb